bitfinex/quotes_ETHUSD_20251026
["timestamp","ask_amount","ask_price","bid_price","bid_amount"]
[1761470218350,0.15120001,3959.3,3959.2,9.39086713]
[1761470222328,1e-08,3959.3,3959.2,9.39086713]
[1761470224645,0.15120001,3959.3,3959.2,9.39086713]
[1761470233054,1e-08,3959.3,3959.2,9.39086713]
[1761470236475,0.15120001,3959.3,3959.2,9.39086713]
[1761470237377,1e-08,3959.3,3959.2,9.39086713]
[1761470245800,0.15120001,3959.3,3959.2,9.39086713]
[1761470250715,1e-08,3959.3,3959.2,9.39086713]
[1761470251283,1e-08,3959.3,3959.2,8.03144278]
[1761470265099,1e-08,3959.3,3959.2,4.86644278]
[1761470265309,1e-08,3959.3,3959.2,8.0557004]
[1761470265511,1e-08,3959.3,3959.2,8.03044278]
[1761470267208,0.15120001,3959.3,3959.2,8.03044278]
[1761470267421,0.15120001,3959.3,3959.2,4.86644278]
[1761470267646,0.15120001,3959.3,3959.2,3.31124278]
[1761470267799,0.15120001,3959.3,3959.2,6.47524278]
[1761470268001,0.15120001,3959.3,3959.2,7.3810855]
[1761470272440,0.15120001,3959.3,3959.2,6.47524278]
[1761470277556,0.15120001,3959.3,3959.2,7.15404096]
[1761470284493,0.15120001,3959.3,3959.2,6.47524278]
[1761470284690,0.15120001,3959.3,3959.2,7.15404096]
[1761470285294,0.15120001,3959.3,3959.2,6.47524278]
[1761470286698,0.15120001,3959.3,3959.2,7.15404096]
[1761470289053,1e-08,3959.3,3959.2,7.15404096]
[1761470289254,1e-08,3959.3,3959.2,7.8241855]
[1761470289696,1e-08,3959.3,3959.2,6.91834278]
[1761470292354,1e-08,3959.3,3959.2,8.47354278]
[1761470292801,1e-08,3959.3,3959.2,9.83204351]
[1761470294071,1e-08,3959.3,3959.2,11.70924351]
[1761470298417,1e-08,3959.3,3959.2,10.35074278]
[1761470311101,1e-08,3959.3,3959.2,12.04704403]
[1761470311311,1e-08,3959.3,3959.2,10.6885433]
[1761470316140,1e-08,3959.3,3959.2,14.13237604]
[1761470316436,1e-08,3959.3,3959.2,16.39774519]
[1761470318341,1e-08,3959.3,3959.2,16.39165117]
[1761470321913,1e-08,3959.3,3959.2,20.18165117]
[1761470328856,1e-08,3959.3,3959.2,20.97012853]
[1761470333560,0.68158951,3962.2,3960.7,3.03168622]
[1761470333764,0.01,3961.8,3960.7,6.19368622]
[1761470334071,0.1413,3960.8,3960.7,6.19368622]
[1761470334378,0.1413,3960.8,3960.7,6.42548622]
[1761470338584,0.1413,3960.8,3960.7,7.10250349]
[1761470338944,0.01,3960.8,3960.7,7.10250349]
[1761470339461,0.1413,3960.8,3960.7,7.10250349]
[1761470340444,0.01,3960.8,3960.7,6.42548622]
[1761470340647,0.01,3961.8,3961.6,3.03111263]
[1761470340874,0.01,3961.8,3961.6,6.19311263]
[1761470341352,0.3734,3961.7,3961.6,6.42491263]
[1761470343480,0.3734,3961.7,3961.6,6.55131263]
[1761470344909,0.2318,3961.7,3961.6,6.42491263]
[1761470345182,0.3734,3961.7,3961.6,7.10196889]
[1761470345388,0.3734,3961.7,3961.6,6.42491263]
[1761470345600,0.3734,3961.7,3961.6,7.10196889]
[1761470345775,0.3744,3961.7,3961.6,7.10196889]
[1761470346395,0.3744,3961.7,3961.6,6.42491263]
[1761470346596,0.001,3961.7,3961.6,6.42491263]
[1761470347391,0.001,3961.7,3961.6,7.98011263]
[1761470349277,0.001,3961.7,3961.6,8.65481416]
[1761470350303,0.001,3961.7,3961.6,8.6545727]
[1761470350887,0.001,3961.7,3961.6,9.1220727]
[1761470352305,1e-08,3961.8,3961.7,4.58624891]
[1761470352494,1e-08,3961.8,3961.7,5.07899059]
[1761470352807,1e-08,3961.8,3961.7,5.72820898]
[1761470353105,1e-08,3961.8,3961.7,5.86960898]
[1761470353310,1e-08,3961.8,3961.7,5.19514891]
[1761470354611,1e-08,3961.8,3961.7,5.86960898]
[1761470354808,1e-08,3961.8,3961.7,5.99600898]
[1761470355310,1e-08,3962.8,3961.7,3.00434007]
[1761470355525,1e-08,3962.8,3962.7,9.16352203]
[1761470355726,1e-08,3962.8,3962.7,6.30666947]
[1761470355915,1e-08,3962.8,3962.7,4.80701193]
[1761470356114,1e-08,3962.8,3962.7,7.97701193]
[1761470356427,1e-08,3962.8,3962.7,8.87461444]
[1761470356891,1e-08,3963.0,3962.9,3.03028457]
[1761470357093,0.01,3963.8,3963.7,3.02977527]
[1761470360024,0.01,3963.8,3963.7,6.20077527]
[1761470362330,0.01,3963.8,3963.7,7.75597527]
[1761470363920,0.011,3963.8,3963.7,7.75597527]
[1761470364120,0.011,3963.8,3963.7,7.99267527]
[1761470365535,0.011,3963.8,3963.7,8.11907527]
[1761470368748,0.011,3963.8,3963.7,8.58657527]
[1761470369238,0.011,3963.8,3963.7,8.11907527]
[1761470369607,0.011,3963.8,3963.7,8.58657527]
[1761470370658,0.011,3963.8,3963.7,8.11907527]
[1761470371365,0.011,3963.8,3963.7,4.94807527]
[1761470371581,0.011,3963.8,3963.7,8.11707527]
[1761470375258,0.011,3963.8,3963.7,8.58457527]
[1761470379450,0.011,3963.8,3963.7,8.11707527]
[1761470380276,0.011,3963.8,3963.7,8.56537527]
[1761470380478,0.011,3963.8,3963.7,8.7897376]
[1761470381947,0.011,3963.8,3963.7,8.11707527]
[1761470383377,0.011,3963.8,3963.7,9.01467778]
[1761470384281,0.011,3963.8,3963.7,8.11707527]
[1761470384494,0.011,3963.8,3963.7,8.56537527]
[1761470384651,0.011,3963.8,3963.7,8.11707527]
[1761470385347,0.011,3963.8,3963.7,9.47108229]
[1761470385567,0.011,3963.8,3963.7,8.56537527]
[1761470386280,1e-08,3963.8,3963.7,8.93242579]
[1761470389012,1e-08,3963.8,3963.7,10.80962579]
[1761470390288,0.001,3964.2,3963.7,10.80962579]
[1761470390289,0.68008998,3966.7,3965.7,0.50688]
[1761470390601,0.1264,3966.3,3965.7,3.02850291]
[1761470390802,0.1264,3966.3,3965.7,3.15490291]
[1761470391012,0.2244,3965.8,3965.7,3.15490291]
[1761470392507,0.2244,3965.8,3965.7,6.32290291]
[1761470392877,0.2244,3965.8,3965.7,3.80128]
[1761470393071,0.2244,3965.8,3965.7,6.32290291]
[1761470394705,0.2244,3965.8,3965.4,2.52177049]
[1761470394909,0.2244,3965.8,3965.5,0.50688]
[1761470396087,0.2244,3965.8,3965.5,3.02861034]
[1761470397398,6.30568976,3965.8,3964.9,2.5221317]
[1761470397717,0.1264,3965.5,3964.9,0.1264]
[1761470397919,0.1369,3964.9,3964.8,2.52217716]
[1761470398120,0.3505,3964.9,3964.8,2.52217716]
[1761470398812,0.3505,3964.9,3964.8,3.02905716]
[1761470399391,0.1369,3964.9,3964.8,3.02905716]
[1761470399718,0.3505,3964.9,3964.8,3.02905716]
[1761470400697,0.2136,3965.4,3965.3,3.02872048]
[1761470400951,0.01,3965.8,3965.4,0.50688]
[1761470401092,0.011,3965.8,3965.4,0.50688]
[1761470401404,0.2129,3965.7,3965.2,0.50688]
[1761470401792,0.2129,3965.7,3965.2,3.02881783]
[1761470401987,0.2129,3965.7,3965.3,0.50688]
[1761470402224,0.2129,3965.7,3965.5,2.52174093]
[1761470403544,0.2129,3965.7,3965.6,2.5216865]
[1761470403690,0.2129,3965.7,3965.2,0.50688]
[1761470403896,0.2129,3965.7,3965.4,0.50688]
[1761470404529,0.2129,3965.7,3965.3,0.50688]
[1761470405031,0.2129,3965.7,3965.3,3.0287404]
[1761470405392,0.2129,3965.7,3965.5,0.50688]
[1761470406197,0.2129,3965.7,3965.4,0.50688]
[1761470406643,0.2129,3965.7,3965.1,3.168]
[1761470406644,0.2129,3965.7,3965.1,0.50688]
[1761470407830,0.27454652,3965.6,3965.1,0.50688]
[1761470408035,0.27454652,3965.6,3965.0,1.8772]
[1761470408247,0.2129,3965.5,3965.0,1.8772]
[1761470408407,0.2129,3965.5,3965.1,3.02883604]
[1761470409507,0.3393,3965.5,3965.2,2.52190551]
[1761470409931,0.2129,3965.4,3965.2,2.52190551]
[1761470410130,0.2129,3965.4,3965.3,0.50688]
[1761470411209,0.2129,3965.4,3965.2,0.50688]
[1761470412344,0.2129,3965.4,3965.1,0.50688]
[1761470412506,0.3393,3965.4,3965.1,0.50688]
[1761470413045,0.2129,3965.3,3965.1,0.50688]
[1761470418357,0.1264,3965.4,3965.1,0.50688]
[1761470418848,0.3393,3965.4,3965.1,0.50688]
[1761470419856,0.2893,3965.4,3965.1,0.50688]
[1761470422537,0.2129,3965.3,3965.1,0.50688]
[1761470422740,0.59780179,3965.3,3965.1,0.50688]
[1761470423264,0.2129,3965.2,3965.1,0.50688]
[1761470424267,0.0764,3965.4,3965.1,0.50688]
[1761470424568,0.2893,3965.4,3965.1,0.50688]
[1761470424861,3.4563,3965.4,3965.1,0.50688]
[1761470425029,0.8663735,3965.3,3965.1,0.50688]
[1761470426975,0.2129,3965.2,3965.1,0.50688]
[1761470427747,0.6534735,3965.3,3965.1,0.50688]
[1761470428047,0.8663735,3965.3,3965.1,0.50688]
[1761470429985,0.8663735,3965.3,3965.0,1.8772]
[1761470429986,3.77261789,3965.2,3965.0,1.8772]
[1761470430182,4.99967362,3965.1,3965.0,1.8772]
[1761470430478,5.21257362,3965.1,3965.0,1.8772]
[1761470431056,5.96962651,3965.1,3965.0,1.8772]
[1761470431656,9.5293444,3965.1,3965.0,1.8772]
[1761470431873,2.52257706,3964.2,3964.1,0.002]
[1761470432053,10.80849495,3964.2,3964.1,0.002]
[1761470432247,10.94339495,3964.2,3964.1,0.002]
[1761470432774,11.04435571,3964.2,3964.1,0.002]
[1761470435056,11.04435571,3964.2,3963.3,0.002]
[1761470435057,2.52289527,3963.7,3963.3,0.002]
[1761470435375,7.85440412,3963.4,3963.3,0.002]
[1761470435690,11.41412201,3963.4,3963.3,0.002]
[1761470435881,11.67192201,3963.4,3963.3,0.002]
[1761470436776,2.52321356,3963.2,3963.1,0.01]
[1761470436977,8.82744712,3963.2,3963.1,1e-08]
[1761470437192,8.82744712,3963.2,3962.6,0.002]
[1761470437193,4.17747723,3963.1,3962.6,0.002]
[1761470437392,4.17747723,3963.1,3962.2,0.002]
[1761470437393,4.07898668,3962.3,3962.2,0.002]
[1761470437690,11.19848616,3962.2,3960.6,0.4473]
[1761470437888,7.73806827,3962.2,3960.8,0.4493]
[1761470438052,10.91306827,3962.2,3961.2,0.2335]
[1761470438875,10.91306827,3962.2,3961.1,0.01]
[1761470439266,7.73806827,3962.2,3961.2,0.6847]
[1761470439595,10.91306827,3962.2,3961.2,0.6847]
[1761470439793,12.20834596,3962.2,3961.4,0.4557]
[1761470440091,12.20834596,3962.2,3961.5,0.4557]
[1761470440092,12.33474596,3962.2,3961.5,0.4557]
[1761470440408,12.33574596,3962.2,3961.5,0.4557]
[1761470440696,12.43504596,3962.2,3961.1,0.01]
[1761470441359,9.25904596,3962.2,3961.1,0.01]
[1761470441558,12.43604596,3962.2,3961.1,0.01]
[1761470443165,12.43604596,3962.2,3961.2,0.229]
[1761470443362,12.43604596,3962.2,3961.2,0.6847]
[1761470443560,9.25904596,3962.2,3961.2,0.6847]
[1761470443769,13.19369346,3962.2,3961.2,0.6847]
[1761470444178,10.01669346,3962.2,3961.2,0.6847]
[1761470444388,13.19369346,3962.2,3961.2,0.6847]
[1761470444688,13.19369346,3962.2,3961.1,0.01]
[1761470444895,13.19369346,3962.2,3961.1,0.239]
[1761470445066,13.19369346,3962.2,3961.1,0.6947]
[1761470446523,13.19369346,3962.2,3961.3,0.4557]
[1761470447721,13.19369346,3962.2,3961.1,0.239]
[1761470447722,13.09439346,3962.2,3961.5,0.4557]
[1761470448085,13.19369346,3962.2,3961.5,0.4557]
[1761470448285,10.01669346,3962.2,3961.5,0.4557]
[1761470448521,10.01669346,3962.2,3961.7,0.4557]
[1761470448522,7.97947557,3962.2,3961.7,0.4557]
[1761470448720,13.09439346,3962.2,3961.7,0.4557]
[1761470450814,13.8960046,3962.2,3961.7,0.4557]
[1761470451944,10.7170046,3962.2,3961.7,0.4557]
[1761470452217,13.8950046,3962.2,3961.7,0.4557]
[1761470453241,8.77802807,3962.2,3961.1,2.76350815]
[1761470453441,8.77802807,3962.2,3961.9,0.4557]
[1761470453944,4.8596,3962.2,3962.1,0.4657]
[1761470454309,7.38345038,3962.2,3962.1,0.4657]
[1761470454510,4.8596,3962.2,3962.1,0.01]
[1761470454710,4.8596,3962.2,3962.1,0.4657]
[1761470455148,4.8596,3962.2,3962.1,0.01]
[1761470455344,1.6816,3962.2,3962.1,0.01]
[1761470455643,1.6816,3962.2,3962.1,1.20158]
[1761470455644,3.178,3962.2,3962.1,1.20158]
[1761470457260,3.178,3962.2,3962.1,1.20358]
[1761470457420,3.179,3962.2,3962.1,1.20358]
[1761470457955,0.001,3962.2,3962.1,3.72749408]
[1761470458162,0.001,3962.2,3962.1,3.85389408]
[1761470473656,0.001,3962.2,3962.1,6.30994136]
[1761470474285,0.001,3962.2,3962.1,6.648043]
[1761470474956,0.001,3962.2,3962.1,5.74719572]
[1761470475594,0.001,3962.2,3962.1,5.40909408]
[1761470476489,0.001,3962.2,3962.1,6.08292359]
[1761470476671,0.001,3962.2,3962.1,9.25792359]
[1761470478190,0.001,3962.2,3962.1,8.58409408]
[1761470478573,0.001,3962.2,3962.1,9.25811386]
[1761470479409,0.001,3962.2,3962.1,9.2582083]
[1761470480087,0.001,3962.2,3962.1,8.58409408]
[1761470480599,0.001,3962.2,3962.1,8.68506096]
[1761470486497,0.001,3962.2,3962.1,9.58590824]
[1761470486914,0.001,3962.2,3962.1,8.68506096]
[1761470487230,0.001,3962.2,3962.1,9.58590824]
[1761470493209,0.001,3962.2,3962.1,8.68506096]
[1761470493415,0.001,3962.2,3962.1,9.58557278]
[1761470493922,0.001,3962.2,3962.1,8.68506096]
[1761470501535,0.001,3962.2,3962.1,10.03633188]
[1761470502036,0.001,3962.2,3962.1,10.37443352]
[1761470502207,0.001,3962.2,3962.1,9.0231626]
[1761470505436,0.001,3962.2,3962.1,8.68506096]
[1761470507747,0.001,3962.2,3962.1,9.0231626]
[1761470511321,0.001,3962.2,3962.1,13.37724825]
[1761470512870,0.001,3962.2,3962.1,12.58732535]
[1761470513023,0.001,3962.2,3962.1,12.88540743]
[1761470514249,1e-08,3963.0,3962.9,3.03028457]
[1761470514451,0.68983312,3964.8,3962.9,3.03028457]
[1761470514452,0.01,3964.8,3962.9,10.95531171]
[1761470514653,0.01,3964.8,3964.7,0.50688]
[1761470515336,0.1098,3964.8,3964.7,0.50688]
[1761470515660,0.1098,3964.8,3964.6,3.178]
[1761470515969,0.1098,3964.8,3964.7,3.02913893]
[1761470516328,0.1098,3964.8,3964.7,0.50688]
[1761470516525,0.1098,3964.8,3964.7,3.02913893]
[1761470516767,0.01,3964.8,3964.7,3.02913893]
[1761470517060,0.01,3964.8,3964.7,8.429041]
[1761470517281,0.01,3964.8,3964.7,4.58433893]
[1761470517480,0.01,3964.8,3964.7,8.63232426]
[1761470517685,1e-08,3964.8,3964.7,13.06777557]
[1761470517986,1e-08,3964.8,3964.7,8.60710168]
[1761470518353,1e-08,3964.8,3964.7,9.50228272]
[1761470519062,1e-08,3964.8,3964.7,9.50225722]
[1761470519257,1e-08,3964.8,3964.7,8.60710168]
[1761470520479,1e-08,3964.8,3964.7,11.34450168]
[1761470520665,1e-08,3964.8,3964.7,12.01524416]
[1761470520871,1e-08,3964.8,3964.7,12.47384416]
[1761470521251,1e-08,3964.8,3964.7,11.80310168]
[1761470523895,1e-08,3964.8,3964.7,11.90399216]
[1761470524260,1e-08,3964.8,3964.7,12.03039216]
[1761470525955,1e-08,3964.8,3964.7,12.3684938]
[1761470526160,0.00100001,3964.8,3964.7,12.3684938]
[1761470526593,0.00100001,3964.8,3964.7,11.57179216]
[1761470526798,0.00100001,3964.8,3964.7,12.03459216]
[1761470527202,0.001,3965.6,3964.7,12.48729598]
[1761470527404,0.001,3965.6,3965.5,3.15503009]
[1761470527696,0.001,3965.6,3965.5,11.46739284]
[1761470527903,0.001,3965.6,3965.5,12.0310589]
[1761470528060,0.001,3965.6,3965.5,12.699279]
[1761470528264,0.001,3965.6,3965.5,12.0310589]
[1761470528598,0.001,3965.6,3965.5,11.5682589]
[1761470529097,0.001,3965.6,3965.5,12.0164589]
[1761470529600,0.0997,3966.4,3966.3,3.02812145]
[1761470529800,0.0997,3966.4,3966.3,6.34652145]
[1761470535166,0.0997,3966.4,3966.3,6.22012145]
[1761470535484,0.0997,3966.4,3966.3,3.02812145]
[1761470540670,0.2119,3967.0,3966.7,2.52098721]
[1761470540815,0.2119,3967.0,3966.7,6.59202996]
[1761470541021,0.1598,3967.9,3966.7,8.57516493]
[1761470541221,0.099,3967.4,3966.7,8.57516493]
[1761470541448,0.1598,3967.9,3966.7,8.57516493]
[1761470541651,0.099,3967.1,3966.7,8.57516493]
[1761470542220,0.2114,3966.9,3966.7,4.58306721]
[1761470543557,0.1101,3966.8,3966.7,4.58306721]
[1761470543764,0.01,3966.8,3966.7,4.58306721]
[1761470544059,0.01,3966.8,3966.7,5.03126721]
[1761470544264,0.01,3966.8,3966.7,5.05647708]
[1761470544463,0.01,3966.8,3966.7,5.48441205]
[1761470544672,0.01,3966.8,3966.7,6.35435772]
[1761470544871,0.01,3966.8,3966.7,5.45920218]
[1761470545056,0.011,3966.8,3966.7,5.90615772]
[1761470545235,0.011,3966.8,3966.7,6.03255772]
[1761470545569,0.011,3966.8,3966.7,6.48075772]
[1761470546368,0.011,3966.8,3966.7,5.58560218]
[1761470546770,0.011,3966.8,3966.7,5.13740218]
[1761470547073,11.32657545,3971.4,3968.9,2.51958981]
[1761470547074,1.0259387,3970.0,3968.9,2.51958981]
[1761470547302,1.0259387,3970.0,3969.1,0.50688]
[1761470547430,1.0259387,3970.0,3969.4,1.17587074]
[1761470547431,0.158,3969.6,3969.4,1.17587074]
[1761470547633,0.158,3969.6,3969.4,1.7109455]
[1761470547866,0.158,3969.6,3969.4,4.23021793]
[1761470548055,0.158,3969.6,3969.4,4.23023725]
[1761470548246,0.01,3969.8,3969.4,4.23023725]
[1761470548947,0.01,3969.8,3969.4,3.56122719]
[1761470549380,0.01,3969.8,3969.4,3.58641991]
[1761470549542,0.01,3969.8,3969.4,6.45087392]
[1761470550047,0.01,3969.8,3969.4,6.89907392]
[1761470550361,0.01,3969.8,3969.7,2.06208]
[1761470550562,0.01,3969.8,3969.7,9.24014692]
[1761470550760,0.01,3969.8,3969.7,8.3262368]
[1761470551082,0.01,3969.8,3969.7,9.66310562]
[1761470551458,0.01,3969.8,3969.7,8.7744368]
[1761470551957,0.01,3969.8,3969.7,9.66310562]
[1761470552161,0.01,3969.8,3969.7,8.7744368]
[1761470552559,0.01,3969.8,3969.7,8.3262368]
[1761470553558,0.90778906,3970.0,3969.9,3.02583513]
[1761470553752,0.90778906,3970.0,3969.9,5.14129944]
[1761470553976,0.90778906,3970.0,3969.9,5.11610989]
[1761470554385,0.01,3970.8,3970.7,2.51844762]
[1761470554686,0.40861221,3971.8,3971.7,2.27998]
[1761470554857,0.40861221,3971.8,3971.7,8.54686829]
[1761470555062,0.35861221,3971.8,3971.7,8.54686829]
[1761470555260,2.81659434,3973.7,3971.7,8.54686829]
[1761470555261,0.3,3973.7,3972.7,0.1448]
[1761470555458,0.3,3973.7,3971.7,4.47385476]
[1761470555459,0.5915,3973.6,3972.4,1.5552]
[1761470555659,0.3,3973.7,3971.7,1.60976035]
[1761470555660,0.3,3973.7,3972.7,0.50688]
[1761470555884,0.3,3973.7,3973.0,0.50688]
[1761470556196,0.3,3973.7,3972.8,3.24]
[1761470556357,0.3,3973.7,3972.9,3.04909022]
[1761470556696,0.3,3973.7,3973.2,0.50688]
[1761470556897,0.3,3973.7,3973.6,0.83888]
[1761470557096,0.3,3973.7,3973.6,4.51702073]
[1761470557400,0.3,3973.7,3973.6,6.95308962]
[1761470557696,0.3,3973.7,3973.6,3.78188]
[1761470557898,0.3,3973.7,3973.6,0.50688]
[1761470558394,0.3,3973.7,3973.6,0.95508]
[1761470558554,0.3,3973.7,3973.6,5.55377762]
[1761470558754,0.3,3973.7,3973.6,2.588968]
[1761470558960,0.3,3973.7,3973.6,0.50688]
[1761470560402,0.3,3973.7,3973.0,0.2064]
[1761470560565,0.3,3973.7,3972.7,0.4282]
[1761470560566,0.58,3973.7,3973.2,1.5552]
[1761470560762,0.58,3973.7,3973.3,0.50688]
[1761470561201,0.28,3973.6,3973.3,0.50688]
[1761470562374,0.28,3973.6,3973.1,3.274]
[1761470562578,0.28,3973.6,3973.2,0.50688]
[1761470563577,0.28,3973.6,3972.8,0.50688]
[1761470563917,0.3,3973.7,3972.8,0.50688]
[1761470563918,0.3,3973.7,3972.8,2.51545116]
[1761470564207,0.3,3973.7,3973.6,0.71328]
[1761470564412,0.301,3973.7,3973.6,5.53948]
[1761470564766,0.2262,3977.0,3974.1,2.51629299]
[1761470564767,0.1248,3975.8,3974.1,2.51629299]
[1761470564990,0.1248,3975.8,3974.1,19.45965511]
[1761470565270,0.4421,3975.6,3974.1,19.88785511]
[1761470565466,0.001,3974.5,3974.1,8.80635921]
[1761470565887,0.001,3974.5,3974.1,6.29006622]
[1761470566200,0.001,3974.5,3974.2,0.50688]
[1761470566398,0.001,3974.5,3974.4,4.57818305]
[1761470566566,0.001,3974.5,3974.4,5.10296927]
[1761470566767,0.001,3974.5,3974.4,5.53116927]
[1761470566964,0.001,3974.5,3974.4,2.58686622]
[1761470567208,0.001,3974.5,3974.4,5.99146622]
[1761470567369,0.001,3974.5,3974.4,8.80922899]
[1761470567570,0.001,3974.5,3974.4,6.29312594]
[1761470567901,0.001,3974.5,3974.4,6.54572594]
[1761470568109,0.001,3974.5,3974.4,6.29312594]
[1761470569517,0.001,3974.5,3974.4,8.80922899]
[1761470569827,0.001,3974.5,3974.4,9.1494633]
[1761470570005,0.001,3974.5,3974.4,10.03444365]
[1761470570168,0.001,3974.5,3974.4,9.99420934]
[1761470570374,0.001,3974.5,3974.4,9.10922899]
[1761470571184,0.01,3976.0,3974.7,4.57799315]
[1761470571380,0.01,3976.0,3974.7,5.86392594]
[1761470571714,0.44735759,3975.7,3974.7,2.07904594]
[1761470571915,0.44735759,3975.7,3974.7,5.34008]
[1761470572118,0.44735759,3975.7,3974.7,5.86425659]
[1761470572711,0.44735759,3975.7,3974.7,6.29245659]
[1761470573086,0.44735759,3975.7,3974.7,5.86425659]
[1761470573523,0.00955759,3975.7,3974.7,5.86425659]
[1761470574035,0.00955759,3975.7,3974.7,0.52417659]
[1761470574036,0.744,3974.8,3974.7,0.52417659]
[1761470574215,0.744,3974.8,3973.8,0.02516482]
[1761470574393,0.4417,3974.7,3973.9,0.52601237]
[1761470574593,0.4417,3974.7,3973.7,3.277]
[1761470574594,0.2262,3973.9,3973.7,3.277]
[1761470574797,0.2262,3973.9,3972.8,1.887]
[1761470575001,0.4417,3973.8,3972.9,3.80534236]
[1761470575203,0.4417,3973.8,3973.0,0.52634236]
[1761470575801,0.4417,3973.8,3972.9,3.279]
[1761470576283,0.4417,3973.8,3973.0,0.52850042]
[1761470576697,0.4417,3973.8,3972.6,3.278]
[1761470576896,0.31842722,3973.7,3972.7,0.52847796]
[1761470577099,0.4417,3973.8,3972.8,0.52847796]
[1761470577337,0.2262,3973.9,3973.5,0.1256]
[1761470577338,0.4417,3973.7,3973.5,0.1256]
[1761470579618,0.4417,3973.7,3972.9,0.65494299]
[1761470579786,0.4417,3973.7,3973.1,0.1256]
[1761470579983,0.2212,3973.6,3973.5,0.1256]
[1761470580187,0.6607,3973.6,3973.5,0.65557488]
[1761470580585,0.2262,3973.9,3973.5,0.65557488]
[1761470580788,0.2233,3974.5,3973.6,3.38657336]
[1761470580988,0.2233,3974.5,3974.4,0.1256]
[1761470581206,0.2233,3974.5,3974.4,0.65557488]
[1761470581420,0.3,3974.8,3974.4,0.65557488]
[1761470581638,0.3,3974.8,3974.5,0.52997488]
[1761470581841,0.7396,3974.8,3974.6,0.52997488]
[1761470581993,0.7396,3974.8,3974.7,0.65557488]
[1761470582312,0.3,3974.8,3974.7,0.65557488]
[1761470582620,0.3,3974.8,3974.7,0.52997488]
[1761470582838,0.7396,3974.8,3974.7,1.19237069]
[1761470583337,0.7396,3974.8,3974.7,0.52997488]
[1761470584897,1.07802157,3974.8,3974.7,1.19575315]
[1761470585097,3.25544985,3974.8,3974.7,0.52997488]
[1761470585334,3.25544985,3974.8,3974.7,1.19575315]
[1761470585535,0.7396,3974.8,3974.7,1.19575315]
[1761470585836,0.7396,3974.8,3974.7,1.19605783]
[1761470586021,0.7396,3974.8,3974.7,0.52997488]
[1761470586205,0.7396,3974.8,3974.7,1.19601334]
[1761470587148,1.07801711,3974.8,3974.7,0.52997488]
[1761470587701,1.07801711,3974.8,3974.7,1.19601334]
[1761470588004,0.7396,3974.8,3974.7,1.19601334]
[1761470588201,0.7396,3974.8,3974.7,0.52997488]
[1761470589213,0.3,3974.8,3974.7,0.55513401]
[1761470589406,0.2218,3977.0,3974.7,0.55513401]
[1761470589407,0.128,3975.8,3974.8,0.50688]
[1761470589765,0.128,3975.8,3975.5,1.33123794]
[1761470589965,0.332,3976.6,3975.6,0.52997488]
[1761470590266,0.332,3976.6,3975.6,1.21117488]
[1761470590753,0.3309,3976.9,3975.6,1.71805488]
[1761470590936,0.3309,3976.9,3975.6,3.27325488]
[1761470591307,0.3309,3976.9,3975.6,3.29840831]
[1761470591615,0.3309,3976.9,3975.6,4.54135881]
[1761470592038,0.3309,3976.6,3975.6,2.76637488]
[1761470592438,0.23,3975.9,3975.6,0.65557488]
[1761470593048,0.23,3975.9,3975.6,0.1256]
[1761470593647,0.23,3976.1,3975.6,0.15075343]
[1761470593850,0.58652091,3976.5,3975.6,0.5889]
[1761470595644,0.58652091,3976.5,3975.6,0.1256]
[1761470595811,0.58652091,3976.5,3975.6,0.5889]
[1761470596424,0.58652091,3976.5,3975.4,1.5552]
[1761470596841,0.328,3976.4,3975.4,1.5552]
[1761470597045,0.58652091,3976.5,3975.5,0.4633]
[1761470597831,0.58652091,3976.5,3975.5,0.48845406]
[1761470598344,0.58652091,3976.5,3975.5,0.4633]
[1761470599251,0.58652091,3976.5,3975.6,1.32852821]
[1761470599648,0.328,3976.3,3975.6,1.32852821]
[1761470599832,0.33885759,3975.7,3975.5,1.32852821]
[1761470600028,0.33885759,3975.7,3975.3,3.286]
[1761470600029,0.33885759,3975.7,3975.6,0.66457443]
[1761470600228,0.33885759,3975.7,3975.0,1.32852821]
[1761470600229,0.33885759,3975.7,3975.0,0.66457443]
[1761470600428,0.33885759,3975.7,3974.9,0.66457443]
[1761470600858,0.33885759,3975.7,3974.5,3.281]
[1761470600859,0.30854294,3975.6,3974.7,0.66457443]
[1761470601062,2.51543348,3975.5,3974.6,0.66457443]
[1761470601367,0.4439,3975.5,3974.6,0.66457443]
[1761470601568,0.30854294,3975.6,3974.4,0.88800812]
[1761470601569,0.2346,3974.7,3974.5,0.66457443]
[1761470601778,0.2346,3974.7,3974.4,0.66657443]
[1761470601940,3.281,3975.6,3974.4,0.66657443]
[1761470601941,0.2297,3975.1,3974.5,0.02516039]
[1761470602135,0.2297,3975.1,3974.5,0.002]
[1761470602446,0.2297,3975.1,3974.5,1.5572]
[1761470602768,0.2297,3975.1,3974.7,0.66457443]
[1761470602969,0.2346,3974.8,3974.5,0.66657443]
[1761470603336,0.2298,3974.7,3974.5,0.002]
[1761470603538,0.2298,3975.1,3974.5,0.002]
[1761470603972,0.01055759,3975.7,3974.7,0.66457443]
[1761470604172,0.2298,3975.6,3974.7,0.66457443]
[1761470604467,0.2298,3975.6,3974.6,0.66457443]
[1761470604675,0.2298,3975.6,3974.5,0.66657443]
[1761470605271,0.01055759,3975.7,3974.5,0.66657443]
[1761470605272,0.01055759,3975.7,3974.7,0.66457443]
[1761470605446,0.01055759,3975.7,3975.5,0.66457443]
[1761470606053,0.01055759,3975.7,3975.6,0.66457443]
[1761470606265,0.01055759,3975.7,3975.5,0.66457443]
[1761470606465,0.01055759,3975.7,3975.6,0.1256]
[1761470607451,0.01055759,3975.7,3975.6,0.02515343]
[1761470607661,0.01055759,3975.7,3975.6,0.4633]
[1761470609840,0.01055759,3975.7,3975.5,1.32852821]
[1761470610044,0.01055759,3975.7,3975.4,2.88372821]
[1761470611500,0.01055759,3975.7,3975.6,0.88754979]